bitfinex-derivatives/quotes_ETHF0:USTF0_20250606
["timestamp","ask_amount","ask_price","bid_price","bid_amount"]
[1749216930460,0.07133351,2484.8,2484.7,2.16176]
[1749216932961,0.87576351,2484.8,2484.7,1.3573]
[1749216933166,0.80453,2484.5,2484.4,0.6933]
[1749216933664,0.80456,2484.4,2484.3,1.3915]
[1749216934166,2.0114,2484.4,2483.9,0.6703]
[1749216934367,0.80469,2484.0,2483.9,2.0618]
[1749216934565,0.80469,2484.0,2483.9,2.86652]
[1749216934866,4.01249,2484.0,2483.7,0.6325]
[1749216935162,3.2078,2484.0,2483.6,1.3915]
[1749216935362,0.80474,2483.9,2483.7,0.80476]
[1749216935564,4.01251,2484.0,2483.8,2.19624]
[1749216935860,0.80472,2483.9,2483.8,1.3915]
[1749216936066,0.80472,2483.9,2483.8,2.19625]
[1749216936373,0.80472,2483.9,2483.8,1.3915]
[1749216937363,0.80472,2483.9,2483.8,2.19625]
[1749216937564,0.80471,2484.0,2483.9,0.80472]
[1749216937764,0.80471,2484.0,2483.8,2.19624]
[1749216937964,10.45431,2484.3,2483.8,1.3915]
[1749216937965,0.80466,2484.1,2483.8,1.3915]
[1749216938159,3.2078,2484.3,2483.9,2.01181]
[1749216938364,3.2078,2484.3,2484.0,1.3022]
[1749216938565,0.80465,2484.1,2484.0,1.3022]
[1749216938773,0.80478,2483.7,2483.4,1.3028]
[1749216938967,0.00602845,2483.8,2483.7,0.80478]
[1749216939472,0.00602845,2483.8,2483.7,7.14908]
[1749216939765,3.2078,2484.3,2483.8,0.80472]
[1749216939970,0.80469,2484.0,2483.9,1.3443]
[1749216940267,4.01249,2484.0,2483.9,1.3443]
[1749216940769,3.2078,2484.0,2483.9,1.3443]
[1749216940969,3.2078,2484.0,2483.9,2.14902]
[1749216940970,4.01249,2484.0,2483.9,2.14902]
[1749216941272,3.2078,2484.0,2483.9,2.14902]
[1749216941467,0.00602845,2484.2,2484.1,0.80465]
[1749216941972,0.81066845,2484.2,2484.1,0.80465]
[1749216942166,0.00602845,2484.2,2483.9,1.3443]
[1749216942366,0.80469,2484.0,2483.9,1.3443]
[1749216942764,0.80475,2483.8,2483.7,0.00602845]
[1749216942967,4.01255,2483.8,2483.7,0.00602845]
[1749216943172,9.01255,2483.8,2483.7,8.45e-06]
[1749216943374,2.01197,2483.7,2482.8,2.15786]
[1749216943579,0.80503,2483.0,2482.9,0.80503]
[1749216943866,24.476,2483.6,2482.8,1.3528]
[1749216943867,3.2078,2483.7,2483.0,2.01253]
[1749216944075,3.19909518,2484.0,2483.7,0.80477]
[1749216944076,0.80475,2483.8,2483.7,0.80477]
[1749216944269,3.2078,2484.0,2483.5,2.01211]
[1749216944465,0.00602845,2484.2,2484.1,0.80465]
[1749216944866,0.81064845,2484.2,2484.1,0.80465]
[1749216945063,0.00602845,2484.2,2484.1,0.80465]
[1749216945263,0.00602845,2484.2,2483.9,1.3528]
[1749216945264,0.81064845,2484.2,2483.9,1.3528]
[1749216945462,0.81064845,2484.2,2484.1,0.80465]
[1749216945661,0.00602845,2484.2,2484.1,0.80465]
[1749216946771,0.80469,2484.0,2483.9,1.3528]
[1749216947079,0.00602845,2484.2,2484.0,0.80469]
[1749216947375,0.00602845,2484.2,2484.1,2.06625]
[1749216947862,0.00602845,2484.2,2484.1,1.2616]
[1749216948062,0.00602845,2484.2,2484.1,2.06625]
[1749216949362,0.00602845,2484.2,2484.1,5.27405]
[1749216949562,4.01223,2484.8,2484.7,0.80446]
[1749216949767,3.2078,2485.1,2484.5,2.0113]
[1749216949974,3.2078,2485.1,2484.9,0.80436]
[1749216949975,0.80437,2485.0,2484.9,0.80436]
[1749216950167,3.2078,2485.1,2484.8,1.3172]
[1749216950363,3.2078,2485.1,2485.0,0.80436]
[1749216950773,0.0060412,2485.3,2485.2,0.8043]
[1749216951074,0.0060412,2485.3,2485.2,6.0403]
[1749216951276,0.0060412,2485.3,2485.2,48.571]
[1749216951466,0.0060412,2485.3,2485.2,43.571]
[1749216951876,5.236,2485.9,2485.2,43.571]
[1749216951877,5.236,2485.9,2485.7,0.80413]
[1749216952079,0.80414,2485.7,2485.6,0.80415]
[1749216952371,0.8042,2485.5,2485.4,1.3307]
[1749216952570,3.2078,2485.7,2485.4,1.3307]
[1749216952771,3.2078,2485.7,2485.6,0.80417]
[1749216952972,0.0060412,2485.9,2485.8,0.8041]
[1749216953976,0.0060412,2485.9,2485.8,2.1348]
[1749216954174,3.2078,2486.6,2485.8,6.3307]
[1749216954472,3.8929,2487.2,2486.5,2.0097]
[1749216954677,0.6851,2487.2,2486.6,6.5985]
[1749216954868,0.80376,2486.9,2486.7,0.8038]
[1749216955072,0.80376,2486.9,2486.8,1.3635]
[1749216955274,0.80373,2487.0,2486.8,2.16727]
[1749216955469,0.80375,2486.9,2486.8,1.3635]
[1749216955679,0.8097612,2487.1,2486.8,1.3635]
[1749216955881,0.8097612,2487.1,2486.9,0.80375]
[1749216956082,0.80373,2487.0,2486.8,1.3635]
[1749216956276,0.80381,2486.7,2486.6,0.0060412]
[1749216956477,3.2078,2486.9,2486.6,0.0060412]
[1749216956681,0.0060412,2487.1,2487.0,0.80372]
[1749216956978,0.8097412,2487.1,2486.9,0.80373]
[1749216957281,0.80376,2486.9,2486.7,0.8038]
[1749216957481,0.80374,2487.0,2486.8,0.80378]
[1749216957982,3.2078,2487.0,2486.7,1.3402]
[1749216958371,3.2078,2487.0,2486.8,0.80376]
[1749216958372,4.01153,2487.0,2486.8,0.80376]
[1749216958682,4.01154,2487.0,2486.8,0.80377]
[1749216958878,0.0060412,2487.1,2486.7,1.3402]
[1749216959178,0.80372,2487.0,2486.8,0.80378]
[1749216959477,0.80372,2487.0,2486.8,2.14398]
[1749216959682,0.80375,2486.9,2486.8,1.3402]
[1749216959980,0.0060412,2487.1,2487.0,0.80372]
[1749216960183,0.0060412,2487.1,2487.0,4.01152]
[1749216960774,0.8097212,2487.1,2487.0,8.4398]
[1749216960976,0.8097212,2487.1,2487.0,5.232]
[1749216961775,0.0060412,2487.1,2487.0,6.03572]
[1749216961983,0.679,2487.8,2487.7,0.80349]
[1749216962185,0.6502,2488.0,2487.4,3.2078]
[1749216962387,0.80353,2487.6,2487.5,1.371]
[1749216962576,0.80357,2487.5,2487.1,3.8631]
[1749216962779,0.80357,2487.5,2487.2,1.371]
[1749216962978,0.0060412,2487.6,2487.3,0.80359]
[1749216963185,0.0060412,2487.6,2487.5,0.80355]
[1749216963186,0.8095712,2487.6,2487.5,0.80355]
[1749216963376,0.0060412,2487.6,2487.5,0.80355]
[1749216963883,3.19909518,2489.9,2489.0,3.2078]
[1749216964084,19.24450621,2491.8,2489.8,3.2078]
[1749216964085,1.9307,2490.7,2489.8,3.2078]
[1749216964288,1.9307,2490.7,2490.4,4.01042]
[1749216964586,0.15999802,2490.8,2490.4,3.2078]
[1749216964885,0.80212,2492.0,2490.7,3.2078]
[1749216965185,6.02991,2492.5,2490.7,3.2078]
[1749216965186,1.2664,2492.4,2491.8,0.80216]
[1749216965383,1.2664,2492.4,2490.8,6.879]
[1749216965384,0.6643,2492.8,2491.9,3.2078]
[1749216965587,1.2664,2492.7,2492.4,3.2078]
[1749216966184,0.00390581,2492.8,2492.4,3.2078]
[1749216966378,0.00390581,2492.8,2492.3,3.2138287]
[1749216966582,1.30880581,2492.8,2492.3,3.2138287]
[1749216966984,8.8258,2492.7,2492.3,0.0060287]
[1749216967180,3.2078,2493.8,2492.6,3.2078]
[1749216967484,0.80197,2492.4,2492.3,0.0060287]
[1749216967786,6.9229,2492.9,2492.3,3.2138287]
[1749216968184,0.80197,2492.4,2492.3,0.0060287]
[1749216968579,0.80217,2491.8,2491.7,3.2078]
[1749216968792,0.80226,2491.6,2491.3,3.2078]
[1749216968981,0.8023,2491.4,2491.3,3.2078]
[1749216969185,0.8023,2491.4,2490.5,0.6299]
[1749216969186,3.2078,2491.4,2490.7,3.2078]
[1749216969383,1.2952,2491.3,2490.7,3.2078]
[1749216969687,0.80246,2490.9,2490.8,0.006016]
[1749216970087,5.80246,2490.9,2490.8,0.006016]
[1749216970282,0.80268,2490.2,2490.1,3.2078]
[1749216970480,0.8028,2489.9,2489.5,3.2078]
[1749216970678,3.2078,2490.4,2489.5,3.2078]
[1749216970679,1.2952,2490.1,2489.5,3.2078]
[1749216970886,4.503,2490.1,2489.2,1.3731]
[1749216971091,5.1866,2490.1,2489.1,3.2078]
[1749216971284,3.213816,2489.8,2489.4,3.213816]
[1749216971479,1.2952,2489.7,2489.4,3.213816]
[1749216971684,0.006016,2489.8,2489.4,3.213816]
[1749216971884,0.006016,2489.8,2489.7,3.2078]
[1749216972088,0.006016,2489.8,2489.7,4.01064]
[1749216972286,0.006016,2489.8,2489.7,8.8238]
[1749216972498,0.006016,2489.8,2489.7,3.2078]
[1749216973790,0.80291,2489.5,2489.4,0.006016]
[1749216973985,0.8029,2489.6,2489.4,0.006016]
[1749216974189,0.006016,2489.8,2489.4,0.006016]
[1749216974388,0.80291,2489.5,2489.4,0.006016]
[1749216974882,7.00736,2489.5,2488.4,8.8238]
[1749216975083,3.2078,2489.1,2488.4,8.8238]
[1749216975390,0.80319,2488.7,2488.4,3.2078]
[1749216975590,1.3839,2489.0,2488.4,4.5941]
[1749216975893,1.3839,2489.0,2488.5,0.006016]
[1749216976094,0.8032,2488.6,2488.5,0.006016]
[1749216976394,1.3839,2489.0,2488.5,0.006016]
[1749216976395,0.80311,2488.9,2488.5,0.809226]
[1749216976592,0.80309,2489.0,2488.7,3.2078]
[1749216976785,3.8978,2489.4,2488.7,3.2078]
[1749216976786,0.69,2489.4,2488.7,3.2078]
[1749216976986,0.80313,2488.8,2488.7,3.2078]
[1749216977187,2.00768,2489.1,2488.5,0.006016]
[1749216977386,0.80315,2488.8,2488.5,0.006016]
[1749216977582,0.69,2489.4,2488.7,3.2078]
[1749216977792,5.616,2489.6,2489.1,0.80301]
[1749216977989,0.006016,2489.8,2489.3,3.2078]
[1749216978188,0.006016,2489.8,2489.4,1.3863]
[1749216978497,0.006016,2489.8,2489.3,3.2078]
[1749216978690,0.006016,2489.8,2489.6,3.2078]
[1749216978884,0.006016,2489.8,2489.7,2.19034]
[1749216979593,0.006016,2489.8,2489.7,1.3875]
[1749216980595,0.006016,2489.8,2489.7,7.19034]
[1749216980797,0.006016,2489.8,2489.7,2.19034]
[1749216981092,0.006016,2489.8,2489.7,1.3875]
[1749216981296,0.808826,2489.8,2489.7,1.3875]
[1749216981687,0.808826,2489.8,2489.4,6.2622]
[1749216981688,0.80289,2489.6,2489.4,6.2622]
[1749216981888,0.80289,2489.6,2489.5,1.3102]
[1749216982188,0.80291,2489.5,2489.4,5.616]
[1749216982694,0.80291,2489.5,2489.4,1.3102]
[1749216982996,0.006016,2489.8,2489.4,1.3102]
[1749216983194,0.808846,2489.8,2489.6,3.2078]
[1749216983392,0.808846,2489.8,2489.7,1.3102]
[1749216983593,0.006016,2489.8,2489.7,1.3102]
[1749216983791,0.808826,2489.8,2489.7,1.3102]
[1749216983987,0.006016,2489.8,2489.7,1.3102]
[1749216984195,0.006016,2489.8,2489.7,2.11304]
[1749216984690,0.006016,2489.8,2489.7,7.11304]
[1749216985095,5.21401,2490.9,2489.9,2.00693]
[1749216985291,0.80255,2490.6,2490.5,3.2078]
[1749216985896,5.21398,2490.9,2490.5,3.2078]
[1749216985897,3.2078,2490.9,2490.5,3.2078]
[1749216986196,3.2078,2490.9,2490.5,3.213816]
[1749216986197,0.80253,2490.7,2490.5,3.213816]
[1749216986400,0.006016,2490.9,2490.8,0.80249]
[1749216986702,0.006016,2490.9,2490.8,4.01029]
[1749216986893,0.006016,2490.9,2490.8,14.62529]
[1749216987094,5.21326,2491.8,2490.8,15.829]
[1749216987294,0.08026648,2491.7,2490.8,10.0884]
[1749216987496,0.08026648,2491.7,2491.1,3.2078]
[1749216987696,0.08026648,2491.7,2491.4,4.01007]
[1749216987891,0.80223,2491.6,2491.5,1.3597]
[1749216988098,0.88247648,2491.7,2491.5,1.3597]
[1749216988299,0.88246648,2491.7,2491.5,2.16194]
[1749216988602,0.08026648,2491.7,2491.5,1.3597]
[1749216988795,0.08026648,2491.7,2491.5,2.16195]
[1749216988993,0.08026648,2491.7,2491.6,0.80223]
[1749216989194,0.80223,2491.6,2491.5,1.3597]
[1749216989998,0.80226,2491.5,2491.4,3.2078]
[1749216990200,0.08026648,2491.7,2491.2,5.614]
[1749216990401,0.08026648,2491.7,2491.5,3.2078]
[1749216990801,0.08026648,2491.7,2491.6,1.2861]
[1749216991005,0.88246648,2491.7,2491.6,1.2861]
[1749216991311,0.08026648,2491.7,2491.3,0.80232]
[1749216991507,0.08026648,2491.7,2491.4,1.2861]
[1749216991703,0.08026648,2491.7,2491.4,2.08838]
[1749216991904,0.88248648,2491.7,2491.5,3.2078]
[1749216992110,0.88246648,2491.7,2491.6,1.2861]
[1749216993420,0.8022,2491.7,2491.6,1.2861]
[1749216994119,0.00598638,2491.8,2491.6,1.2861]
[1749216994424,0.8022,2491.7,2491.6,1.2861]
[1749216994720,0.80229,2491.5,2491.3,5.726]
[1749216995017,0.80226,2491.5,2491.4,1.371]
[1749216996316,0.07133351,2491.7,2491.4,1.371]
[1749216996517,0.80225,2491.6,2491.4,5.38109]
[1749216996720,0.07133351,2491.7,2491.6,0.80223]
[1749216997324,0.07133351,2491.7,2491.5,0.6804]
[1749216997525,0.07133351,2491.7,2491.6,2.17743]
[1749216998221,0.07133351,2491.7,2491.6,7.90343]
[1749216998423,0.07133351,2491.7,2491.6,12.90343]
[1749216999226,2.0048,2492.6,2492.2,0.80202]
[1749216999425,0.80198,2492.4,2492.3,1.3752]
[1749216999619,0.80215,2492.0,2491.9,3.2078]
[1749217000129,2.00486,2492.5,2492.1,0.80204]
[1749217000428,2.00446,2493.0,2492.1,0.006016]
[1749217000725,0.88102406,2492.9,2492.6,0.8019]
[1749217000928,0.80184,2492.8,2492.7,3.2078]
[1749217001121,3.2078,2493.5,2492.7,3.2078]
[1749217001423,0.88062983,2493.4,2492.8,1.3692]
[1749217001620,0.88062983,2493.3,2492.8,1.3692]
[1749217001826,0.80181,2492.9,2492.8,1.3692]
[1749217002025,3.2078,2493.3,2492.8,1.3692]
[1749217002222,2.00448,2493.0,2492.4,3.2078]
[1749217002427,0.80194,2492.5,2492.4,3.2078]
[1749217002625,2.67369,2493.4,2492.4,4.577]
[1749217002829,0.80178,2493.0,2492.8,0.80183]
[1749217003130,2.67369,2493.4,2492.7,3.2078]
[1749217003131,0.6695,2493.4,2492.7,3.2078]
[1749217003436,2.00424,2493.3,2492.8,1.3687]
[1749217003630,0.80172,2493.2,2493.1,0.80174]
[1749217003829,0.8017,2493.3,2492.8,1.3687]
[1749217004030,0.8017,2493.3,2493.0,3.2078]
[1749217004332,3.2078,2493.8,2493.1,1.3687]
[1749217004535,5.21105,2494.5,2493.6,3.2078]
[1749217004733,0.80149,2493.9,2493.8,0.006016]
[1749217004929,4.00929,2493.9,2493.8,0.006016]
[1749217005131,9.00929,2493.9,2493.8,0.006016]
[1749217005331,4.00929,2493.9,2493.8,0.006016]
[1749217005528,14.73229,2493.9,2493.8,6e-06]
[1749217005837,15.61196344,2493.9,2493.8,6e-06]
[1749217006836,0.80188,2492.7,2492.6,3.2078]
[1749217007133,3.2078,2492.7,2492.2,20.9]
[1749217007338,3.2078,2492.7,2492.1,5.723]
[1749217007730,0.80198,2492.4,2492.2,3.2078]
[1749217007935,3.2078,2492.7,2492.2,3.2078]
[1749217007936,0.006016,2492.5,2492.2,3.2078]
[1749217008238,0.006016,2492.5,2492.3,1.3691]
[1749217008437,0.006016,2492.5,2492.3,2.17109]
[1749217008734,0.006016,2492.5,2492.3,1.3691]
[1749217008930,0.80197,2492.4,2492.3,1.3691]
[1749217009130,0.006016,2492.5,2492.3,1.3691]
[1749217009431,0.006016,2492.5,2492.4,0.80197]
[1749217009645,0.6897,2493.3,2492.3,8.37407]
[1749217009936,3.2078,2493.2,2492.4,4.00976]
[1749217010138,0.80194,2492.5,2492.4,8.9308]
[1749217010437,0.80197,2492.4,2492.3,1.3691]
[1749217010637,0.80204,2492.2,2492.1,3.213816]
[1749217010831,0.80204,2492.2,2492.1,0.006016]
[1749217012937,4.00984,2492.2,2492.1,0.006016]
[1749217013233,4.00984,2492.2,2491.5,4.01004]
[1749217013234,0.80223,2491.6,2491.5,3.2078]
[1749217013541,0.80238,2491.2,2491.1,5.723]
[1749217013742,2.00558,2491.6,2491.1,9.73319]
[1749217013743,0.80235,2491.3,2491.1,9.73319]
[1749217014038,2.00534,2491.9,2491.2,1.2705]
[1749217014238,5.21297,2492.2,2491.5,0.80225]
[1749217014239,0.8022,2491.7,2491.5,0.80225]
[1749217014434,0.80224,2491.6,2491.4,3.2078]
[1749217014640,0.006016,2491.8,2491.4,1.2705]
[1749217014841,0.006016,2491.8,2491.7,0.8022]
[1749217015036,0.006016,2491.8,2491.7,4.01]
[1749217015838,0.006016,2491.8,2491.7,5.346]
[1749217016046,0.006016,2491.8,2491.7,10.346]
[1749217016644,0.07133351,2492.7,2491.7,9.5438]
[1749217016837,0.80205,2492.2,2492.0,4.00989]
[1749217017033,0.80207,2492.1,2492.0,3.2078]
[1749217017238,0.80206,2492.2,2492.1,0.80207]
[1749217017443,0.80207,2492.1,2492.0,4.5438]
[1749217017645,3.2078,2492.3,2491.5,0.6677]
[1749217017839,0.88671476,2492.2,2491.7,3.2078]
[1749217018139,0.88671476,2492.2,2491.8,1.336]
[1749217018543,0.80208,2492.1,2491.9,0.80213]
[1749217018843,5.21286,2492.3,2491.6,5.723]
[1749217019143,0.80217,2491.8,2491.6,6.5252]
[1749217019338,2.00518,2492.2,2491.6,0.80223]
[1749217019539,2.00518,2492.2,2491.5,6.3907]
[1749217019540,1.68862797,2492.1,2491.9,0.80212]
[1749217019742,0.80218,2491.8,2491.6,0.80221]
[1749217019946,0.80216,2491.9,2491.6,0.80221]
[1749217020250,3.2078,2492.3,2491.5,0.6677]
[1749217020449,0.8021,2492.0,2491.9,0.80212]
[1749217020743,3.2078,2492.3,2491.7,5.21328]
[1749217020942,0.88647845,2492.2,2492.1,0.80206]
[1749217021146,7.0185,2492.6,2492.2,0.80202]
[1749217021339,0.88650546,2492.5,2492.2,0.80202]
[1749217021542,1.68849546,2492.4,2491.9,2.00533]
[1749217021737,0.88650546,2492.3,2492.2,0.80204]
[1749217022044,0.07133351,2492.7,2492.6,0.80191]
[1749217022345,0.07133351,2492.7,2492.6,9.73271]
[1749217022945,3.8389,2493.8,2493.0,2.00442]
[1749217023143,0.80159,2493.6,2493.5,0.8016]
[1749217023340,0.80159,2493.6,2493.2,0.006016]
[1749217023341,1.68774507,2493.6,2493.4,0.80163]
[1749217023542,0.80166,2493.4,2493.3,0.80167]
[1749217023743,0.80168,2493.3,2493.2,0.006016]
[1749217023943,6.48674,2493.8,2493.2,0.006016]
[1749217024145,0.88586522,2493.7,2493.2,0.006016]
[1749217024351,0.88586522,2493.6,2493.2,0.006016]
[1749217024546,3.2078,2493.8,2493.4,0.80164]
[1749217024745,0.88550497,2493.7,2493.3,3.2078]
[1749217024951,0.88550497,2493.6,2493.5,0.80162]
[1749217025150,0.88550497,2493.6,2493.3,3.2078]
[1749217025351,0.80163,2493.5,2493.3,4.00947]
[1749217025546,0.80168,2493.3,2493.2,0.006016]
[1749217026449,5.80168,2493.3,2493.2,0.006016]
[1749217026654,6.68762131,2493.3,2493.2,0.006016]
[1749217027255,0.88594131,2493.3,2493.2,0.807736]
[1749217027759,0.80156,2493.7,2493.6,0.80158]
[1749217028054,0.88565042,2493.7,2493.6,0.80158]
[1749217028253,3.2078,2493.8,2493.7,0.80155]
[1749217028554,3.2078,2493.8,2493.4,6.51264]
[1749217028555,0.80162,2493.5,2493.4,6.51264]
[1749217028852,4.09521863,2493.8,2493.4,5.711]
[1749217028853,3.2078,2493.8,2493.4,5.711]
[1749217029152,0.80162,2493.5,2493.4,0.80163]
[1749217029360,3.2078,2493.8,2493.3,0.80167]
[1749217029361,5.21164,2493.8,2493.3,0.80167]
[1749217029654,0.80168,2493.3,2493.2,0.006016]
[1749217030252,6.68904496,2493.3,2493.2,0.006016]
[1749217030461,0.80186,2492.8,2492.6,0.80189]
[1749217030651,0.80176,2493.1,2492.7,3.2078]
[1749217030850,0.80182,2492.9,2492.4,11.60943]
[1749217031255,0.80183,2492.9,2492.7,0.80185]
[1749217031455,0.80187,2492.8,2492.6,0.807916]
[1749217031762,0.07133351,2492.7,2492.6,0.807926]
[1749217031958,0.87321351,2492.7,2492.6,0.006016]
[1749217032550,0.07133351,2492.7,2492.6,0.807926]
[1749217033059,0.87321351,2492.7,2492.6,0.006016]
[1749217033368,0.07133351,2492.7,2492.6,0.807926]
[1749217033761,0.07133351,2492.7,2492.6,5.807926]
[1749217033964,0.006016,2493.0,2492.9,0.80181]
[1749217034170,0.006016,2493.0,2492.9,14.71961]
[1749217034472,0.80157,2493.7,2493.6,0.80158]
[1749217034675,1.68856997,2493.7,2493.6,0.80158]
[1749217034866,0.88699997,2493.7,2493.0,3.2078]
[1749217035066,0.80166,2493.4,2493.3,0.80166]
[1749217035264,3.2078,2494.1,2493.3,3.2078]
[1749217035467,1.68849659,2494.0,2493.9,0.80148]
[1749217035666,0.88701659,2494.0,2493.9,4.00928]
[1749217035862,0.80144,2494.1,2494.0,0.80146]
[1749217036172,7.71322,2494.6,2494.0,1.3176]
[1749217036467,0.80152,2493.8,2493.7,0.006016]
[1749217037266,1.68785866,2493.8,2493.7,0.006016]
[1749217038166,8.01765866,2493.8,2493.7,0.006016]
[1749217038473,0.80181,2492.9,2492.8,3.2078]
[1749217038665,0.80181,2492.9,2492.7,5.709]
[1749217038666,5.21213,2493.2,2492.7,6.51088]
[1749217038861,0.80184,2492.8,2492.7,5.709]
[1749217039067,3.2078,2493.2,2492.6,1.3715]
[1749217039270,2.010396,2493.1,2492.7,0.006016]
[1749217039472,2.010396,2493.1,2491.0,3.2078]
[1749217039473,4.00943,2492.7,2491.0,3.2078]
[1749217039773,3.2078,2491.6,2491.0,3.2078]
[1749217039967,5.709,2491.5,2490.9,1.2912]
[1749217040163,0.80231,2491.4,2491.0,3.2078]
[1749217040360,5.715016,2491.4,2491.1,1.2912]
[1749217040565,0.80236,2491.2,2491.0,0.006016]
[1749217040765,5.715016,2491.4,2491.0,0.006016]
[1749217041172,0.80239,2491.1,2491.0,0.006016]
[1749217041376,4.5143,2491.3,2491.0,0.006016]
[1749217041670,0.006016,2491.4,2491.3,0.80233]
[1749217041864,0.006016,2491.4,2491.2,4.01016]
[1749217042064,0.006016,2491.4,2491.3,1.2912]
[1749217042265,0.006016,2491.4,2491.3,2.09353]
[1749217042467,0.006016,2491.4,2491.3,1.2912]
[1749217042777,0.006016,2491.4,2491.3,2.09353]
[1749217043069,0.006016,2491.4,2491.3,7.09353]
[1749217043379,0.80207,2492.1,2491.7,0.80218]
[1749217043573,0.80213,2491.9,2491.8,1.2817]
[1749217043876,3.2078,2492.3,2491.8,2.08385]
[1749217044169,3.213816,2492.3,2491.8,1.2817]
[1749217044473,3.213816,2492.3,2491.9,0.80213]
[1749217044675,3.213816,2492.3,2492.2,0.80204]
[1749217044875,0.006016,2492.3,2492.1,3.2078]
[1749217045079,0.006016,2492.3,2492.2,1.2817]
[1749217045477,0.006016,2492.3,2492.2,2.08374]
[1749217047776,3.2078,2493.0,2492.2,11.9927]
[1749217048081,0.80188,2492.7,2492.6,4.00971]
[1749217048281,0.80186,2492.8,2492.6,3.2078]
[1749217048478,0.80184,2492.9,2492.7,0.80187]
[1749217048677,0.8018,2493.0,2492.9,0.80181]
[1749217048978,0.80177,2493.1,2492.7,0.006016]
[1749217049173,0.8017,2493.3,2492.7,2.010666]
[1749217049374,0.80164,2493.5,2493.3,0.80165]
[1749217049573,3.27913351,2493.8,2493.6,0.80158]
[1749217049768,3.27913351,2493.8,2493.2,3.2078]
[1749217049971,0.80167,2493.4,2493.2,3.2078]
[1749217050168,2.00391,2493.7,2493.2,3.2078]
[1749217050375,2.07518351,2493.8,2493.0,0.695]
[1749217050376,10.92281,2493.6,2493.0,0.695]
[1749217050675,5.21186,2493.5,2492.7,0.006016]
[1749217050875,1.3463,2493.4,2492.7,0.006016]
[1749217051075,3.2078,2493.2,2492.7,0.006016]
[1749217051276,0.80173,2493.2,2492.7,3.213816]
[1749217051477,0.8017,2493.3,2492.7,5.218476]
[1749217051679,0.8017,2493.3,2493.2,0.80172]
[1749217052081,5.711,2493.4,2492.8,22.1612]
[1749217052282,0.80173,2493.2,2493.1,0.80173]
[1749217052472,5.711,2493.4,2492.8,22.1612]
[1749217052672,0.80169,2493.3,2492.8,3.26579]
[1749217052880,5.711,2493.4,2492.8,1.2612]
[1749217053077,7.71517,2493.4,2492.9,0.80179]
[1749217053272,0.80184,2492.8,2492.7,0.006016]
[1749217053671,5.80184,2492.8,2492.7,0.006016]
[1749217053873,3.06490125,2492.8,2492.7,0.006016]
[1749217054071,0.80184,2492.8,2492.7,0.006016]
[1749217054275,6.49884,2492.8,2492.7,0.006016]
[1749217054581,0.80184,2492.8,2492.7,0.006016]
[1749217055373,5.697,2492.9,2492.8,0.80184]
[1749217055579,5.697,2492.9,2492.8,2.19114]
[1749217055779,6.49881,2492.9,2492.8,1.3893]
[1749217055977,0.80184,2492.9,2492.7,0.006016]
[1749217056181,5.698,2493.1,2492.7,0.006016]
[1749217056182,0.80184,2492.8,2492.7,0.006016]
[1749217056580,4.00964,2492.8,2492.7,0.006016]
[1749217057182,4.89637531,2492.8,2492.7,0.006016]
[1749217057978,9.89637531,2492.8,2492.7,0.006016]
[1749217058574,0.80207,2492.1,2492.0,1.3096]
[1749217058778,3.2078,2492.5,2492.0,1.3096]
[1749217058978,4.00965,2492.8,2492.7,0.80188]
[1749217059280,3.2078,2492.8,2492.7,0.80188]
[1749217059681,4.00967,2492.8,2492.5,0.006016]
[1749217059886,0.80187,2492.8,2492.5,1.315616]
[1749217060087,0.80187,2492.8,2492.6,0.80188]
[1749217060392,0.006016,2493.0,2492.9,0.80181]
[1749217060882,0.006016,2493.0,2492.7,1.984]
[1749217061189,0.006016,2493.0,2492.5,0.637716]
[1749217061491,0.80191,2492.6,2492.5,1.363216]
[1749217061684,0.006016,2493.0,2492.9,0.80181]
[1749217061685,0.807816,2493.0,2492.9,0.80181]
[1749217061890,0.006016,2493.0,2492.9,0.80181]
[1749217062088,0.006016,2493.0,2492.7,1.3572]
[1749217062289,0.006016,2493.0,2492.9,0.80181]
[1749217062682,0.006016,2493.0,2492.9,2.15901]
[1749217062882,0.006016,2493.0,2492.9,2.83341]
[1749217064090,2.6925,2493.6,2492.9,2.83341]
[1749217064091,3.2078,2493.7,2492.9,7.0316]
[1749217064291,3.2078,2493.7,2493.3,2.00422]
[1749217064587,2.00368,2494.0,2493.4,1.3466]
[1749217064792,0.80155,2493.8,2493.6,0.80156]
[1749217065092,0.80155,2493.8,2493.7,1.3466]
[1749217065287,0.80163,2493.5,2493.4,0.80164]
[1749217065489,0.80161,2493.6,2493.4,2.14824]
[1749217065690,0.80162,2493.5,2493.4,2.14823]
[1749217066084,0.80162,2493.5,2493.4,2.14825]
[1749217066391,2.00373,2493.9,2493.4,1.3466]
[1749217066592,0.80162,2493.5,2493.4,1.3466]
[1749217067390,0.80162,2493.5,2493.4,2.14825]
[1749217067591,0.80162,2493.5,2493.4,1.3466]
[1749217067791,0.80162,2493.5,2493.4,2.14825]
[1749217068095,0.80162,2493.5,2493.4,1.3466]
[1749217068400,0.8017,2493.3,2493.2,0.80171]
[1749217068691,0.80167,2493.4,2493.1,1.2894]
[1749217068992,0.80167,2493.4,2493.3,0.80168]
[1749217069194,0.80168,2493.3,2493.2,0.80169]
[1749217069392,0.87297351,2493.5,2493.1,1.2894]
[1749217069589,0.07133351,2493.5,2493.4,4.00945]
[1749217069988,0.87295351,2493.5,2493.4,4.00945]
[1749217070190,0.87295351,2493.5,2493.3,1.3658]
[1749217070191,0.07133351,2493.5,2493.3,1.3658]